Cogmind - Beta 13 @@@ ROGUE MODE // 2024.04.14 @ 20:39:19 Player: Lunace Result: Destroyed by Z-Imprinter with Zionite Laser-M Performance ------------- Evolutions (3) 1500 Regions Visited (10) 2000 Robots Destroyed (57) 285 Value Destroyed (1516) 1516 Prototype IDs (23) 460 Alien Tech Used (0) 0 Bonus (809) 809 TOTAL SCORE: 6570 Bonus ------- High Alert Combat Kills 31 Follower Combat Kills 178 Aligned with FarCom 300 Met Imprinter 300 Cogmind --------- Core Integrity 0/700 Matter 300/300 Energy 100/100 System Corruption 0% Temperature Cool (18) Movement Core (150) Ox2 Location -7/Deep Caves Parts ------- > --- POWER (1) -------- (None) > --- PROPULSION (4) --- (None) > --- UTILITY (5) ------ Lightpack 2.0 Signal Interpreter Improved Melee Analysis Suite > --- WEAPON (3) ------- CR-A16's Pointy Stick > --- INVENTORY (40) --- Nuclear Core Nuclear Core Nuclear Core Wheel Improved Heat Sink Cooling System Improved Cooling System Compact Battery (200) Compact Battery (200) Compact Battery (200) High-capacity Matter Pod (200) Compact Matter Pod (150) Improved Terrain Scan Processor Improved Terrain Scan Processor Improved Melee Analysis Suite Improved Light Armor Plating Medium Reflective Plating Hardlight Generator System Shield System Shield Authchip [Propulsion] Dynamic Insulation System Gauss Rifle Flak Gun Flak Gun Flak Gun Flak Gun Makeshift Shrapnel Gun Gauss Cannon Slug Cannon GAL Module Peak State ------------ > --- POWER ------------ Micro Nuclear Core > --- PROPULSION ------- Armored Huge Wheel Armored Huge Wheel > --- UTILITY ---------- Lightpack 2.0 Signal Interpreter Improved Melee Analysis Suite > --- WEAPON ----------- Slug Cannon Greatsword > --- INVENTORY -------- Nuclear Core Nuclear Core Wheel Improved Heat Sink Cooling System Compact Battery Compact Battery Compact Battery High-capacity Matter Pod High-capacity Matter Pod Compact Matter Pod Improved Terrain Scan Processor Improved Terrain Scan Processor Improved Melee Analysis Suite Hardlight Generator Flak Gun Flak Gun Flak Gun Flak Gun Gauss Cannon Heavy Missile Launcher Greatsword [Rating: 74] Favorites ----------- Power Micro Nuclear Core Engine Light Ion Engine Power Core Micro Nuclear Core Propulsion Armored Huge Wheel Treads Light Treads Wheel Armored Huge Wheel Utility Lightpack 2.0 Device Improved Heat Sink Storage Lightpack 2.0 Processor Improved Melee Analysis Suite Protection Core Shielding Weapon Greatsword Energy Gun Medium Laser Energy Cannon Heavy Particle Cannon Ballistic Gun Light Assault Rifle Ballistic Cannon Advanced Assault Cannon Launcher Rocket Launcher Slashing Weapon Greatsword Piercing Weapon CR-A16's Pointy Stick Build | -11 -10 -10 -10 -9 -8 -7 -7 -7 -7 -7 ------- Run | Yrd Mat Min Exi Min Mat Fac Low Low Zio Dee Slots Evolved 6 | . . . . . 4 2 . . . . Power . | . . . . . . . . . . . Propulsion 2 | . . . . . 2 . . . . . Utility 3 | . . . . . 1 2 . . . . Weapon 1 | . . . . . 1 . . . . . Parts Attached 55 | 7 4 4 . 4 8 23 2 2 . 1 Power 8 | 1 1 1 . 1 1 3 . . . . Engine 4 | 1 1 1 . 1 . . . . . . Core 4 | . . . . . 1 3 . . . . Reactor . | . . . . . . . . . . . Propulsion 12 | 2 . 1 . 1 4 4 . . . . Treads 3 | 2 . . . . 1 . . . . . Leg . | . . . . . . . . . . . Wheel 9 | . . 1 . 1 3 4 . . . . Hover . | . . . . . . . . . . . Flight . | . . . . . . . . . . . Utility 15 | 2 3 . . . 1 9 . . . . Device 6 | 1 . . . . . 5 . . . . Storage 6 | 1 2 . . . 1 2 . . . . Processor 2 | . . . . . . 2 . . . . Hackware . | . . . . . . . . . . . Protection 1 | . 1 . . . . . . . . . Artifact . | . . . . . . . . . . . Weapon 20 | 2 . 2 . 2 2 7 2 2 . 1 Energy Gun 3 | 2 . . . . . 1 . . . . Energy Cannon 1 | . . . . . 1 . . . . . Ballistic Gun 4 | . . 2 . . . 2 . . . . Ballistic Cannon 4 | . . . . 1 . 1 2 . . . Launcher 2 | . . . . 1 . . . 1 . . Special Weapon . | . . . . . . . . . . . Impact Weapon . | . . . . . . . . . . . Slashing Weapon 5 | . . . . . 1 3 . 1 . . Piercing Weapon 1 | . . . . . . . . . . 1 Special Melee Weapon . | . . . . . . . . . . . Unidentified Prototypes . | . . . . . . . . . . . Parts Lost 19 | . 1 1 . . 1 9 1 2 . 4 Power 3 | . 1 . . . . 1 . . . 1 Propulsion 5 | . . 1 . . . 2 . . . 2 Utility 1 | . . . . . . 1 . . . . Weapon 10 | . . . . . 1 5 1 2 . 1 Highest Loss Streak 6 | . 1 1 . . 1 6 1 2 . 4 To Critical Strikes . | . . . . . . . . . . . Average Slot Usage (%) 69 | . 100 99 100 100 59 54 60 56 53 51 Engine 4 | . 14 14 14 14 2 . . . . . Core 4 | . . . . . 7 6 7 7 7 7 Treads 8 | . 28 27 14 14 4 . . . . . Wheel 10 | . . . 14 14 17 14 15 15 15 13 Device 2 | . 10 . . . . 3 . . . . Storage 10 | . 14 14 14 14 9 10 7 7 7 7 Processor 5 | . . . . . . 3 15 15 15 15 Protection 3 | . 3 14 14 14 . . . . . . Energy Gun 6 | . 28 13 . . . 3 . . . . Ballistic Gun 3 | . . 14 28 14 . . 1 . . . Ballistic Cannon 1 | . . . . 5 5 2 5 . . . Slashing Weapon 4 | . . . . . 4 6 7 7 7 6 Naked Turns . | . . . . . . . . . . . Heaviest Build 49 | 12 49 19 17 21 25 25 23 23 16 16 Greatest Support 56 | 40 40 40 10 12 56 56 56 56 56 56 Greatest Overweight (x) 1 | . 1 1 1 1 1 . . . . . Average Overweight (x) . | . . . 1 1 . . . . . . Largest Inventory Capacity 40 | 8 20 10 10 10 40 40 40 40 40 40 Average Capacity 30 | 7 15 10 10 10 39 40 40 40 40 40 Most Carried 32 | 3 9 10 10 10 23 21 23 24 32 32 Average Carried 15 | 2 5 9 9 9 16 12 18 23 28 31 Final Capacity 40 | 8 10 10 10 10 40 40 40 40 40 40 Final Carried 32 | 3 9 8 10 10 22 14 23 24 32 31 Class Distribution -------------------- 41% | Hauler-Gladiator 33% | Mutant 22% | Hauler-Mutant 3% | Hauler-Skirmisher Dominant Class ---------------- Mutant | -10/Materials Mutant | -10/Mines Mutant | -10/Exiles Mutant | -9/Mines Hauler-Mutant | -8/Materials Hauler-Mutant | -7/Factory Hauler-Gladiator | -7/Lower Caves Hauler-Gladiator | -7/Lower Caves Hauler-Gladiator | -7/Zion Hauler-Gladiator | -7/Deep Caves Resources | -11 -10 -10 -10 -9 -8 -7 -7 -7 -7 -7 ----------- Run | Yrd Mat Min Exi Min Mat Fac Low Low Zio Dee Matter Collected 1319 | 270 20 210 13 7 424 203 81 67 24 . Remotely 154 | 134 20 . . . . . . . . . Salvage Created 1731 | 93 71 135 . 7 485 789 69 82 . . Parts 115 | 3 7 13 . 2 35 46 4 5 . . Haulers Intercepted 1 | . . . . . 1 . . . . . Recyclers Shooed 3 | . 1 . . 2 . . . . . . Parts Field Recycled . | . . . . . . . . . . . Retrieved Matter . | . . . . . . . . . . . Parts Self-Destructed 7 | . . . . . . . 1 6 . . Prevented . | . . . . . . . . . . . Kills | -11 -10 -10 -10 -9 -8 -7 -7 -7 -7 -7 ------- Run | Yrd Mat Min Exi Min Mat Fac Low Low Zio Dee Combat Hostiles Destroyed 40 | . 3 5 . . 11 16 1 4 . . Melee 25 | . . . . . 8 15 1 1 . . Guns 9 | . 3 5 . . . 1 . . . . Cannons 1 | . . . . . 1 . . . . . AOE 5 | . . . . . 2 . . 3 . . Classes Destroyed 13 | 1 2 2 . . 6 2 . . . . Worker 6 | . . 2 . 1 1 2 . . . . Builder 2 | . . . . . 1 1 . . . . Tunneler 1 | . . 1 . . . . . . . . Hauler 1 | . . . . . 1 . . . . . Recycler 2 | 1 . . . . . 1 . . . . Operator 1 | . . . . . . 1 . . . . Watcher 4 | . 1 . . . 3 . . . . . Swarmer 20 | . 3 5 . . 3 6 . 3 . . Grunt 8 | . . . . . 2 6 . . . . Brawler 1 | . . . . . 1 . . . . . Sentry 5 | . . . . . 4 1 . . . . Hunter 4 | . . . . . 1 1 1 1 . . Programmer 2 | . . . . . . 2 . . . . Decomposer 1 | . . . . . . . 1 . . . Best Kill Streak 6 | 1 3 3 . 1 4 6 1 3 . . Combat Bots Only 6 | . 3 3 . . 3 6 1 3 . . Max Kills in Single Turn 2 | 1 1 1 . 1 2 1 1 2 . . Gunslinging . | . . . . . . . . . . . Exploded 2 | . . . . . 1 . . 2 . . Melee 1 | . . . . . 1 1 1 1 . . Uniques/NPCs Destroyed . | . . . . . . . . . . . Combat | -11 -10 -10 -10 -9 -8 -7 -7 -7 -7 -7 -------- Run | Yrd Mat Min Exi Min Mat Fac Low Low Zio Dee Hostile Shots Fired 440 | . 56 32 . . 52 225 28 22 . 25 Missed 117 | . 7 10 . . 8 74 7 6 . 5 Damage Taken 4650 | . 393 185 . . 685 2032 366 335 . 654 Core 936 | . 61 44 . . 121 320 63 99 . 228 Absorbed by Shields . | . . . . . . . . . . . Redirected to Shielding 7 | . . 7 . . . . . . . . Regen/Repaired (Parts) 318 | . . . . . . 318 . . . . Core Remaining (%) 78 | 100 . . . 58 78 . . . . . Volleys Fired 61 | 5 19 18 . . 11 5 1 2 . . Largest 3 | 2 2 2 . . 3 1 1 1 . . Hottest 143 | 90 90 90 . . 143 56 48 39 . . Shots Fired 116 | 10 39 35 . 1 23 5 1 2 . . Gun 88 | 10 39 35 . . . 4 . . . . Cannon 20 | . . . . . 18 1 1 . . . Launcher 8 | . . . . 1 5 . . 2 . . Special . | . . . . . . . . . . . Kinetic 29 | . . 17 . . 9 2 1 . . . Thermal 79 | 10 39 18 . . 9 3 . . . . Explosive 8 | . . . . 1 5 . . 2 . . Electromagnetic . | . . . . . . . . . . . Robot Hit Streak 14 | 5 14 6 . . 6 3 . . . . Robot Miss Streak 4 | 1 2 3 . 1 3 3 2 4 . . Penetration Max . | . . . . . . . . . . . Secondary Targets 2 | . 1 1 . . . . . . . . Max Gunslinging Chain 1 | . 1 1 . . . . . . . . Shots Hit Robots 136 | 8 24 21 . . 33 42 5 2 . 1 Core Hits 69 | 3 6 8 . 2 25 18 2 4 . 1 Critical Kills . | . . . . . . . . . . . Critical Parts Destroyed . | . . . . . . . . . . . Critical Strikes 13 | . 2 . . . 5 5 . 1 . . Burn 2 | . 2 . . . . . . . . . Blast 1 | . . . . . 1 . . . . . Sever 10 | . . . . . 4 5 . 1 . . Melee Attacks 105 | . . . . . 25 61 5 3 7 4 Impact . | . . . . . . . . . . . Slashing 102 | . . . . . 25 61 5 3 7 1 Piercing 3 | . . . . . . . . . . 3 Sneak Attacks 7 | . . . . . . 6 1 . . . Combat Hostiles 1 | . . . . . . 1 . . . . Follow-up Attacks . | . . . . . . . . . . . Damage Inflicted 5305 | 97 278 226 . 105 1553 2417 305 290 . 34 Guns 637 | 93 278 226 . . . 40 . . . . Cannons 216 | . . . . . 216 . . . . . Explosions 703 | . . . . 105 411 . . 187 . . Melee 3745 | . . . . . 926 2377 305 103 . 34 Ramming 4 | 4 . . . . . . . . . . Kinetic 203 | . . 76 . . 116 11 . . . . Thermal 650 | 93 278 150 . . 100 29 . . . . Explosive 703 | . . . . 105 411 . . 187 . . Electromagnetic . | . . . . . . . . . . . Impact . | . . . . . . . . . . . Slashing 3711 | . . . . . 926 2377 305 103 . . Piercing 34 | . . . . . . . . . . 34 Highest Corruption 3 | . 3 3 3 3 . 1 1 1 1 . Average Corruption 1 | . 2 3 3 3 . 1 1 1 1 . Corruption Purged . | . . . . . . . . . . . Corruption Blocked . | . . . . . . . . . . . Effects 38 | . 5 14 2 1 . 9 3 3 1 . Message Errors 8 | . . 5 . . . 2 1 . . . Matter Fused 13 | . 1 4 . . . 5 1 1 1 . Heat Flow Errors 2 | . . . . . . . 1 1 . . Energy Discharges 4 | . 1 1 1 . . . . 1 . . Parts Fused 1 | . . 1 . . . . . . . . Data Loss (minor) 6 | . 2 1 1 . . 2 . . . . Data Loss (major) 1 | . . 1 . . . . . . . . Misfires 2 | . 1 . . 1 . . . . . . Weapon Failures 1 | . . 1 . . . . . . . . Overload Shots . | . . . . . . . . . . . Overflow Damage 428 | . . . . . 45 383 . . . . Projectiles . | . . . . . . . . . . . Explosions 2 | . . . . . 2 . . . . . Melee 426 | . . . . . 43 383 . . . . Knockbacks 2 | . . . . . 2 . . . . . Impact . | . . . . . . . . . . . Kinetic 2 | . . . . . 2 . . . . . Secondary . | . . . . . . . . . . . Self-Inflicted Damage 47 | . . . . . . . . 47 . . Shots 1 | . . . . . . . . 1 . . Rammed 1 | 1 . . . . . . . . . . Targets Rammed 1 | 1 . . . . . . . . . . Kicked . | . . . . . . . . . . . Crushed . | . . . . . . . . . . . Highest Temperature 351 | 90 300 150 . . 351 1 247 236 . 1 Average Temperature 95 | 41 111 51 . . 119 1 125 130 . 1 Received Heat Transfer 894 | . . . . . 189 459 54 12 . 180 Effects 2 | . . . . . 1 . 1 . . . Shutdowns 1 | . . . . . 1 . . . . . Interference 1 | . . . . . . . 1 . . . Siege Activations . | . . . . . . . . . . . Robots Corrupted . | . . . . . . . . . . . Combat Hostiles . | . . . . . . . . . . . Parts Fried . | . . . . . . . . . . . Impact Corruptions . | . . . . . . . . . . . Robots Melted . | . . . . . . . . . . . Combat Hostiles . | . . . . . . . . . . . Parts Melted 2 | . 1 1 . . . . . . . . Heat Transferred 1771 | 236 892 421 . . 148 74 . . . . Parts Sabotaged . | . . . . . . . . . . . Parts Stolen . | . . . . . . . . . . . Parts Stripped . | . . . . . . . . . . . Power Chain Reactions . | . . . . . . . . . . . Alert | -11 -10 -10 -10 -9 -8 -7 -7 -7 -7 -7 ------- Run | Yrd Mat Min Exi Min Mat Fac Low Low Zio Dee Peak Influence 466 | 5 121 138 . 13 466 245 . . . . Initial 127 | . 3 3 . . 4 127 . . . . Average 96 | . 43 45 . 3 186 129 . . . . Maximum Alert Level 2 | . . . . . 2 1 . . . . Low Security (%) 90 | 100 100 100 . 100 47 92 . . . . Level 1 8 | . . . . . 44 7 . . . . Level 2 1 | . . . . . 8 . . . . . Level 3 . | . . . . . . . . . . . Level 4 . | . . . . . . . . . . . Level 5 . | . . . . . . . . . . . High Security . | . . . . . . . . . . . Max Security . | . . . . . . . . . . . Squads Dispatched 10 | . 2 . . . . 8 . . . . Investigation 4 | . 1 . . . . 3 . . . . Extermination 4 | . . . . . . 4 . . . . Reinforcement 2 | . 1 . . . . 1 . . . . Assault . | . . . . . . . . . . . Garrison . | . . . . . . . . . . . Intercept . | . . . . . . . . . . . Searches Triggered . | . . . . . . . . . . . Construction Impeded . | . . . . . . . . . . . Haulers Reinforced . | . . . . . . . . . . . Active Scanning Responses . | . . . . . . . . . . . Cargo Convoy Interrupts . | . . . . . . . . . . . Stealth | -11 -10 -10 -10 -9 -8 -7 -7 -7 -7 -7 --------- Run | Yrd Mat Min Exi Min Mat Fac Low Low Zio Dee Distress Signals 4 | . 1 . . . 2 1 . . . . Communications Jammed . | . . . . . . . . . . . Distress Signals . | . . . . . . . . . . . Times Spotted 82 | . 12 9 . . 18 29 6 6 . 2 Peak Tracking Total 8 | . 4 3 . . 4 8 5 3 . 3 Tactical Retreats 9 | . 1 . . . 2 5 . 1 . . Traps | -11 -10 -10 -10 -9 -8 -7 -7 -7 -7 -7 ------- Run | Yrd Mat Min Exi Min Mat Fac Low Low Zio Dee Traps Triggered 5 | . 3 . . . . 2 . . . . Indirectly . | . . . . . . . . . . . Trap Hack Attempts . | . . . . . . . . . . . Triggered . | . . . . . . . . . . . Disarmed . | . . . . . . . . . . . Reprogrammed . | . . . . . . . . . . . Reused . | . . . . . . . . . . . Traps Extracted . | . . . . . . . . . . . Installed . | . . . . . . . . . . . Triggered . | . . . . . . . . . . . Machines | -11 -10 -10 -10 -9 -8 -7 -7 -7 -7 -7 ---------- Run | Yrd Mat Min Exi Min Mat Fac Low Low Zio Dee Machines Disabled 3 | . . . . . 1 2 . . . . Max in Single Turn 1 | . . . . . 1 1 . . . . Machines Repaired . | . . . . . . . . . . . Machines Dismantled . | . . . . . . . . . . . Machines Sabotaged . | . . . . . . . . . . . Overloaded Fab Kills . | . . . . . . . . . . . Hacking | -11 -10 -10 -10 -9 -8 -7 -7 -7 -7 -7 --------- Run | Yrd Mat Min Exi Min Mat Fac Low Low Zio Dee Machines Accessed 19 | . 3 1 1 . 2 10 1 . 1 . Terminals 10 | . 3 . . . 2 5 . . . . Fabricators 1 | . . . . . . 1 . . . . Repair Stations 2 | . . . . . . 2 . . . . Recycling Units 1 | . . . . . . 1 . . . . Scanalyzers 1 | . . . . . . 1 . . . . Garrison Access . | . . . . . . . . . . . Total Hacks 42 | . 7 1 1 . 5 21 1 . 6 . Successful 23 | . 4 1 1 . 1 9 1 . 6 . Failed 19 | . 3 . . . 4 12 . . . . Catastrophic 5 | . . . . . 1 4 . . . . Database Lockouts . | . . . . . . . . . . . Manual 27 | . 7 . 1 . 5 10 . . 4 . Terminals 21 | . 7 . . . 5 9 . . . . Fabricators 2 | . . . . . . 2 . . . . Repair Stations 5 | . . . . . . 5 . . . . Recycling Units 3 | . . . . . . 3 . . . . Scanalyzers 2 | . . . . . . 2 . . . . Garrison Access . | . . . . . . . . . . . Terminal Hacks 14 | . 3 1 1 . . 2 1 . 6 . Part Schematic 6 | . . . . . . . . . 6 . Open Door 2 | . . 1 . . . . 1 . . . Branch Access Points 2 | . 1 . . . . 1 . . . . Terminal Index 1 | . 1 . . . . . . . . . Unreport Threat 1 | . . . . . . 1 . . . . Recall Investigation 1 | . 1 . . . . . . . . . Derelict Proto ID Bank 1 | . . . 1 . . . . . . . Fabricator Hacks 1 | . . . . . . 1 . . . . Network Status 1 | . . . . . . 1 . . . . Repair Station Hacks 4 | . . . . . . 4 . . . . Scan Component 2 | . . . . . . 2 . . . . Repair 2 | . . . . . . 2 . . . . Recycling Unit Hacks 1 | . . . . . . 1 . . . . Report Inventory 1 | . . . . . . 1 . . . . Scanalyzer . | . . . . . . . . . . . Garrison Access Hacks . | . . . . . . . . . . . Unauthorized Hacks 3 | . 1 . . . 1 1 . . . . Terminals 2 | . 1 . . . 1 . . . . . Operators 2 | . 1 . . . 1 . . . . . Fabricators . | . . . . . . . . . . . Repair Stations . | . . . . . . . . . . . Recycling Units 1 | . . . . . . 1 . . . . Recyclers 1 | . . . . . . 1 . . . . Scanalyzers . | . . . . . . . . . . . Garrison Access . | . . . . . . . . . . . Data Cores Recovered . | . . . . . . . . . . . Used . | . . . . . . . . . . . Hacking Detections 14 | . 2 . . . 2 10 . . . . Full Trace Events 3 | . . . . . . 3 . . . . Feedback Events . | . . . . . . . . . . . Feedback Blocked . | . . . . . . . . . . . Robot Schematics Acquired 4 | . . . . . . . . . 4 . Robots Built . | . . . . . . . . . . . Authchips . | . . . . . . . . . . . Time . | . . . . . . . . . . . Total Robot Build Rating . | . . . . . . . . . . . Part Schematics Acquired 21 | . . . . . . . . . 21 . Parts Built . | . . . . . . . . . . . Authchips . | . . . . . . . . . . . Time . | . . . . . . . . . . . Total Part Build Rating . | . . . . . . . . . . . Parts Repaired 2 | . . . . . . 2 . . . . Time 88 | . . . . . . 88 . . . . Parts Recycled . | . . . . . . . . . . . Recycled Matter . | . . . . . . . . . . . Retrieved Matter . | . . . . . . . . . . . Retrieved Components . | . . . . . . . . . . . Parts Scanalyzed . | . . . . . . . . . . . Part Schematics Acquired . | . . . . . . . . . . . Parts Damaged . | . . . . . . . . . . . Bothacking | -11 -10 -10 -10 -9 -8 -7 -7 -7 -7 -7 ------------ Run | Yrd Mat Min Exi Min Mat Fac Low Low Zio Dee Used RIF Installer . | . . . . . . . . . . . Robots Hacked . | . . . . . . . . . . . Non-combat . | . . . . . . . . . . . Combat . | . . . . . . . . . . . Robot Hacks Applied . | . . . . . . . . . . . Relay Couplers Released . | . . . . . . . . . . . Fabnet Peak Effective % . | . . . . . . . . . . . Robots Rewired . | . . . . . . . . . . . Allies Hacked . | . . . . . . . . . . . Hacks Repelled . | . . . . . . . . . . . Allies | -11 -10 -10 -10 -9 -8 -7 -7 -7 -7 -7 -------- Run | Yrd Mat Min Exi Min Mat Fac Low Low Zio Dee Total Allies 5 | . . 2 . . . 3 . . . . Largest Group 3 | . . 2 1 . . 3 1 . . . Highest-Rated Group 93 | . . 35 31 . . 93 28 . . . Highest-Rated Ally 31 | . . 31 31 . . 31 28 . . . Total Orders . | . . . . . . . . . . . Ally Attacks 44 | . . 12 . . . 28 4 . . . Total Damage 785 | . . 193 . . . 571 21 . . . Kills 9 | . . 4 . . . 5 . . . . Allies Corrupted . | . . . . . . . . . . . Allies Melted . | . . . . . . . . . . . Intel | -11 -10 -10 -10 -9 -8 -7 -7 -7 -7 -7 ------- Run | Yrd Mat Min Exi Min Mat Fac Low Low Zio Dee Robot Analysis Total . | . . . . . . . . . . . Derelict Logs Recovered 3 | . . . . . . . 1 . 2 . Drone Launches . | . . . . . . . . . . . Drone Recoveries . | . . . . . . . . . . . Exploration | -11 -10 -10 -10 -9 -8 -7 -7 -7 -7 -7 ------------- Run | Yrd Mat Min Exi Min Mat Fac Low Low Zio Dee Turns Passed 5530 | 100 656 794 222 56 442 1512 343 313 953 139 Spaces Moved 3891 | 47 251 453 233 41 255 971 310 286 917 127 Core 4 | 4 . . . . . . . . . . Treads 710 | 43 251 416 . . . . . . . . Legs . | . . . . . . . . . . . Wheels 3177 | . . 37 233 41 255 971 310 286 917 127 Hover . | . . . . . . . . . . . Flight . | . . . . . . . . . . . Fastest Speed 50 | 50 160 95 95 95 85 100 100 100 100 100 Average Speed 112 | 150 199 154 95 103 94 100 100 100 100 100 Slowest Speed 240 | 160 240 160 95 105 105 100 100 100 100 100 Overloaded Moves . | . . . . . . . . . . . Propulsion Burnouts . | . . . . . . . . . . . Robots Hopped . | . . . . . . . . . . . Cave-ins Triggered . | . . . . . . . . . . . Exploration Rate (%) 41 | 4 40 87 60 10 29 27 46 45 86 22 Regions Visited 10 Branch Regions 7 Pre-discovered Areas 2 | . . . . . . . . . 2 . Known Exits Taken 5 | . 1 . . . . 1 1 1 1 . Unknown Exits Taken 5 | 1 . 1 1 1 1 . . . . . Scrap Searched 14 | . . 2 . 1 . . 6 1 4 . Spaces Dug 13 | . . . . . . 10 . 1 2 . Terrain Destroyed 101 | . . . . 12 36 10 1 40 2 . Melee 12 | . . . . . . 9 . 1 2 . Projectile 4 | . . . . . 2 1 1 . . . AOE 85 | . . . . 12 34 . . 39 . . Terrain Rammed . | . . . . . . . . . . . Walls Destroyed . | . . . . . . . . . . . Machines Disabled . | . . . . . . . . . . . Actions | -11 -10 -10 -10 -9 -8 -7 -7 -7 -7 -7 --------- Run | Yrd Mat Min Exi Min Mat Fac Low Low Zio Dee Total 4711 | 62 368 516 234 54 386 1384 332 304 939 132 Wait 494 | . 84 25 . 4 57 306 5 8 5 . Move 3882 | 47 250 452 232 40 254 970 309 285 916 127 Hop . | . . . . . . . . . . . Pick Up 73 | 3 8 7 1 2 22 7 8 4 11 . Fast Attach 27 | 7 1 2 . 1 5 9 2 . . . Attach 19 | . 1 2 . . 2 11 . 2 . 1 Detach 6 | . . . . . . 5 1 . . . Swap 9 | . 2 . . 3 1 3 . . . . Drop 34 | . 3 10 1 4 9 6 1 . . . Fire 61 | 5 19 18 . . 11 5 1 2 . . Melee 105 | . . . . . 25 61 5 3 7 4 Ram . | . . . . . . . . . . . Kick . | . . . . . . . . . . . Crush . | . . . . . . . . . . . Escape Stasis 1 | . . . . . . 1 . . . . Rewire . | . . . . . . . . . . . Trap . | . . . . . . . . . . . Miscellaneous . | . . . . . . . . . . . Route ------- -11/Scrapyard -10/Materials (discovered 2 exits: *Min x2) -10/Mines (discovered 2 exits: [*Mat] / *Exi) -10/Exiles -9/Mines -8/Materials -7/Factory (discovered 4 exits: *Fac / Sto / *Low x2) -7/Lower Caves -7/Lower Caves -7/Zion (discovered 2 exits: *Dee / [*Pro]) -7/Deep Caves History --------- Turn | Location | Event 44 | -11/Scrapyard | Discovered new exit (range 14) 101 | -11/Scrapyard | Entered Materials 316 | -10/Materials | Build established: Mutant 598 | -10/Materials | Identified exit to Mines 757 | -10/Materials | Entered Mines 769 | -10/Mines | Discovered new exit (range 10) 1366 | -10/Mines | Found the Drone Emporium 1374 | -10/Mines | Found Prototype Device 1543 | -10/Mines | Deemed a non-threat by the Exiles lab entrance 1543 | -10/Mines | Discovered new exit (range 5) 1551 | -10/Mines | Entered Exiles 1551 | -10/Exiles | Accompanied by 1 ally 1573 | -10/Exiles | Met 8R-AWN 1581 | -10/Exiles | Led the pair of lost Derelicts to a safe place 1590 | -10/Exiles | Met EX-HEX 1620 | -10/Exiles | Met EX-BIN 1630 | -10/Exiles | Aligned with FarCom system 1631 | -10/Exiles | Given EX-Vault access code 1653 | -10/Exiles | Opened EX-Vault 1661 | -10/Exiles | Found Lightpack 2.0 1682 | -10/Exiles | Warned to stay clear of 0b10 Research branches 1709 | -10/Exiles | Met EX-DEC 1761 | -10/Exiles | Discovered new exit (range 14) 1773 | -10/Exiles | Left Exiles lab with Lightpack 2.0 1773 | -10/Exiles | Entered Mines 1785 | -9/Mines | Discovered new exit (range 15) 1794 | -9/Mines | Received a Rocket Launcher from a helpful Derelict 1829 | -9/Mines | Entered Materials 1829 | -8/Materials | Evolved 4 slots: Propulsion x2, Utility x1, Weapon x1 2230 | -8/Materials | Discovered new exit (range 10) 2271 | -8/Materials | Entered Factory 2271 | -7/Factory | Evolved 2 slots: Utility x2 2335 | -7/Factory | Repaired Arm. Huge Wheel 2375 | -7/Factory | Build established: Hauler-Mutant 2882 | -7/Factory | Lost 6 parts (1p1n1u3w) 2957 | -7/Factory | Repaired Arm. Huge Wheel? 3334 | -7/Factory | Allied Derelicts emerged from ambush trap array 3543 | -7/Factory | Discovered new exit (range 15) 3548 | -7/Factory | Build established: Hauler-Gladiator 3667 | -7/Factory | Identified exit to Factory 3678 | -7/Factory | Identified exit to Storage 3678 | -7/Factory | Identified exit to Lower Caves 3783 | -7/Factory | Entered Lower Caves 3783 | -7/Lower Caves | Accompanied by 1 ally 3902 | -7/Lower Caves | Identified exit to Lower Caves 4105 | -7/Lower Caves | Attracted the attention of an 0b10 outpost 4114 | -7/Lower Caves | Core integrity fell below 50% 4126 | -7/Lower Caves | Entered another Lower Caves area 4206 | -7/Lower Caves | Encountered a Warlord checkpoint 4359 | -7/Lower Caves | Spotted B-75 Beast 4431 | -7/Lower Caves | Discovered new exit (range 9) 4438 | -7/Lower Caves | Identified exit to Zion 4439 | -7/Lower Caves | Entered Zion 4524 | -7/Zion | Discovered new exit (range 9) 4586 | -7/Zion | System corruption cleaned by Quarantine Array 4702 | -7/Zion | Found GAL Module 4753 | -7/Zion | Learned location of Storage (-7) 4802 | -7/Zion | Learned location of Warlord (-4) 4836 | -7/Zion | Learned Factory stockpile data 4894 | -7/Zion | Learned Factory emergency access door positions 4937 | -7/Zion | Acquired unknown access codes intercepted by a Zionite 5167 | -7/Zion | Rebuked by Imprinter 5230 | -7/Zion | Found CR-A16's Pointy Stick 5375 | -7/Zion | Opened final containment barrier to the Deep Caves 5390 | -7/Zion | Discovered new exit (range 3) 5390 | -7/Zion | Saw the warning signs outside the Deep Caves entrance 5391 | -7/Zion | Identified exit to Deep Caves 5392 | -7/Zion | Entered Deep Caves 5509 | -7/Deep Caves | Attacked by Z-Imprinter 5522 | -7/Deep Caves | Core integrity fell below 20% 5531 | -7/Deep Caves | Destroyed by Z-Imprinter with Zionite Laser-M Last Messages --------------- place goes to hell. Again. >>\\3J7C Containment barrier disabled. Signature recorded so we know who to blame when the place goes to hell. Again. 05379_ PUBLIC SERVICE ANNOUNCEMENT: Quarantine Array scanned 1 system, cleaned 1. 05390_ EXIT=FOUND 05390_ The room is plastered with warning signs of various forms. 05391_ EXIT=IDENTIFIED: DEEP CAVES LOCATION=DEEP CAVES GOAL=ESCAPE 05495_ NEW_ZION: Z-Facility proximity alert. Z-Imprinter: GET AWAY FROM HERE! I've worked too hard for our future just to have you ruin everything! 05518_ Greatsword destroyed. 05521_ Arm. Huge Wheel destroyed. 05530_ Mic. Nuclear Core destroyed. Map ----- +----------------------------------------------------+ | | | | | | | | | | | | | | | | | | | | | | | | | | | | | | | | | | | | | ?????????????????#?#?????????????????????????????? | | ??????????########;#;####????????????????????????? | | ??????????# ##???????????????????????? | | ???????# ####?###????????????????? | | ??????# #;;### ##?????######????# | | ?????# ## # #???### ##???# | | ???? ##### #???# | | ????? @ #???# | | ????? I #???# | | ????? ##???? | | ?????? #????? | | ?????? """"" """""" ##???? | | ????????""""""""""""" ##### | | ??????????""""""""""" z | | ??????????????????""" | | ?????????????????? | | ??????????????????""" ### | | ??????????????????""" ###?# | | ????????????????????" ##???# | | ????????????????????" #????# | | ???????????????????? #????? | | ????????????????????? ????? | | ??????????????????????? ????? | | ?????????????????????????????? #???? | | ??????????????????????????????? ##???? | | ??????????????????????????????? #????? | | ???????????????????????????????? ????? | | ????????????????????????????????? ????? | | ??????????????????????????????????? #????? | | ????????????????????????????????????? #?????? | | ???????????????????????????????????????? ??????? | | ?????????????????????????????????????????????????? | +----------------------------------------------------+ Best States ------------- Heat Dissipation 48 Energy Generation 15 Energy Capacity 440 Matter Stores 435 Matter Capacity 450 Sight Range 16 Terrain Scan Density 10 Core Shielding 20 Evasion (%) 43 Melee Accuracy 6 Recoil Reduction 2 Authchip Count 1 Item Schematics ----------------- Flak Gun | -7/Zion | Archive Hvy. Plasma Cannon | -7/Zion | Archive Xenon Bombardment Thruster | -7/Zion | Archive Mak. Hover Unit | -7/Zion | Archive Hvy. Riot Gun | -7/Zion | Archive Imp. Trap Scanner | -7/Zion | Archive Mak. Shrapnel Gun | -7/Zion | Archive Mass Driver | -7/Zion | Archive Recoil Nullifier | -7/Zion | Archive Coolant Injector | -7/Zion | Archive 0b10 Decoder Chip [Scout] | -7/Zion | Archive Remote Shield | -7/Zion | Archive Mak. Salvage Targeting Computer | -7/Zion | Archive Imp. EM Pulse Cannon | -7/Zion | Archive Power Amplifier | -7/Zion | Archive Beamcaster | -7/Zion | Free Riot Gun | -7/Zion | Free Barrage Gun | -7/Zion | Free Hvy. Battle Rifle | -7/Zion | Free Battle Cannon | -7/Zion | Free Phasing Sabre | -7/Zion | Free Robot Schematics ------------------ T-07 Excavator | -7/Zion | Archive R-06 Scavenger | -7/Zion | Archive W-25 Informer | -7/Zion | Archive H-88 Terminator | -7/Zion | Archive Fabricated ------------ Nothing Alien Tech Used ----------------- None Achievements -------------- None Challenges ------------ None Game ------ Seed HeatNodeFemtoactuators Manual? 0 Play Time 00:44:13 Cumulative 74.2 hours Start 2024.04.14 @ 19:56:01 End 2024.04.14 @ 20:39:19 Sessions 1 Manual Loads 0 Difficulty Rogue Special Mode None Game No. 84 Rogue 79 Adventurer 5 Explorer 0 Win Type - Total 3 Types 2/0/0/1/0/0/0/0/0 Lore% 35 Gallery% 55 Achievement% 43 Wizard Run 0 Options --------- Layout 1 ASCII 0 Keyboard 0 Movement Mouse Keybinds 0 Fullscreen 1 Font 24/Terminus Map View 50x35 Zoom Use 0% Tactical HUD 1 Map Filters NONE Filters NONE Steam 1 RUN: a718721c-4695-40d1-9579-900dbd82c24f